fUST/lending_fUST_20250702
["ID","MTS","AMOUNT","RATE_DAILY","PERIOD"]
[369001149,1751430645481,-1359.47564834,0.00021555,5]
[369001151,1751430645491,-460.0,0.00021626,2]
[369001153,1751430645500,-463.96,0.00021626,2]
[369001155,1751430645510,-460.0,0.00021626,2]
[369001157,1751430645520,-1369.44,0.00021626,2]
[369001159,1751430645530,-295.10326765,0.00021627,2]
[369001160,1751430645539,-590.90541706,0.00021627,2]
[369001161,1751430645549,-460.0,0.00021627,2]
[369001163,1751430645560,-634.83,0.00021627,2]
[369001165,1751430645570,-556.91,0.00021627,2]
[369001168,1751430645580,-802.51,0.00021628,2]
[369001169,1751430645590,-460.0,0.00021628,2]
[369001172,1751430645600,-1364.29,0.00021628,2]
[369001173,1751430645610,-191.7,0.0002173,5]
[369001176,1751430645621,-341.28550224,0.0002184,2]
[369001178,1751430645630,-2500.0,0.00021858,2]
[369001180,1751430645640,-1359.47564834,0.00021866,6]
[369001182,1751430645649,-460.0,0.000219,2]
[369001184,1751430645661,-463.96,0.000219,2]
[369001186,1751430645671,-460.0,0.000219,2]
[369001188,1751430645680,-1369.44,0.000219,2]
[369001190,1751430645691,-460.0,0.00021901,2]
[369001192,1751430645702,-634.83,0.00021901,2]
[369001194,1751430645712,-556.91,0.00021901,2]
[369001196,1751430645722,-802.51,0.00021902,2]
[369001198,1751430645731,-460.0,0.00021902,2]
[369001200,1751430645740,-1364.29,0.00021902,2]
[369001202,1751430645750,-150.0,0.00021917,2]
[369001204,1751430645760,-764.662433,0.00021931,4]
[369001206,1751430645770,-195.76878551,0.00021953,2]
[369001208,1751430645780,-168.0,0.00021991,2]
[369001210,1751430645790,-12004.98245103,0.00022,2]
[369001212,1751430645800,-3494.54,0.00022,7]
[369001214,1751430645810,-8688.83,0.00022,2]
[369001216,1751430645820,-999.99999912,0.00022,2]
[369001218,1751430645829,-170.0,0.00022014,2]
[369001220,1751430645839,-170.0,0.00022023,2]
[369001222,1751430645849,-399.83,0.000221,7]
[369001224,1751430645859,-170.0,0.00022117,2]
[369001226,1751430645868,-191.7,0.00022166,5]
[369001228,1751430645878,-460.0,0.00022174,2]
[369001230,1751430645887,-463.96,0.00022174,2]
[369001232,1751430645898,-378.14956613,0.00022174,2]
[369001234,1751430645907,-1369.44,0.00022174,2]
[369001236,1751430645917,-460.0,0.00022175,2]
[369001238,1751430645927,-634.83,0.00022175,2]
[369001239,1751430645937,-556.91,0.00022175,2]
[369001240,1751430645947,-1359.47564834,0.00022176,6]
[369001241,1751430645956,-802.51,0.00022176,2]
[369001242,1751430645966,-460.0,0.00022176,2]
[369001243,1751430645975,-1364.29,0.00022176,2]
[369001244,1751430645984,-601.64571175,0.0002219,2]
[369001245,1751430645994,-151.0,0.000222,10]
[369001246,1751430646003,-209.060974,0.00022204,7]
[369001247,1751430646013,-886.0,0.00022204,2]
[369001248,1751430646022,-886.0,0.00022244,2]
[369001249,1751430646041,-151.0,0.00022277,7]
[369001250,1751430646054,-342.489569,0.00022278,2]
[369001251,1751430646064,-342.489569,0.00022278,2]
[369001252,1751430646074,-151.0,0.00022278,7]
[369001253,1751430646084,-151.0,0.00022278,7]
[369001254,1751430646094,-151.0,0.00022278,7]
[369001255,1751430646104,-151.0,0.00022278,7]
[369001256,1751430646113,-151.0,0.00022278,7]
[369001257,1751430646123,-151.0,0.00022278,7]
[369001258,1751430646132,-366.4191338,0.00022301,2]
[369001259,1751430646142,-366.4191338,0.00022301,2]
[369001260,1751430646152,-366.4191338,0.00022301,2]
[369001261,1751430646162,-366.4191338,0.00022301,2]
[369001262,1751430646172,-366.4191338,0.00022301,2]
[369001263,1751430646182,-151.0,0.00022375,7]
[369001264,1751430646192,-151.0,0.00022375,7]
[369001265,1751430646201,-151.768806,0.00022375,7]
[369001266,1751430646212,-151.0,0.00022375,7]
[369001267,1751430646222,-506.43,0.00022381,2]
[369001268,1751430646232,-151.0,0.00022386,7]
[369001270,1751430646242,-151.0,0.00022386,7]
[369001272,1751430646253,-151.0,0.00022386,7]
[369001273,1751430646263,-151.0,0.00022386,7]
[369001274,1751430646272,-206.19884,0.00022386,7]
[369001275,1751430646285,-206.19884,0.00022386,7]
[369001276,1751430646295,-527.22,0.000224,7]
[369001277,1751430646304,-3000.0,0.00022406,2]
[369001278,1751430646314,-460.0,0.00022448,2]
[369001279,1751430646324,-463.96,0.00022448,2]
[369001280,1751430646334,-1369.44,0.00022448,2]
[369001281,1751430646345,-460.0,0.00022449,2]
[369001282,1751430646355,-634.83,0.00022449,2]
[369001283,1751430646365,-556.91,0.00022449,2]
[369001284,1751430646376,-802.51,0.0002245,2]
[369001287,1751430646386,-293.97353626,0.0002245,2]
[369001288,1751430646396,-1364.29,0.0002245,2]
[369001290,1751430646406,-215.0738,0.00022453,2]
[369001293,1751430646415,-506.43,0.00022481,7]
[369001295,1751430646425,-1359.47564834,0.00022486,7]
[369001297,1751430646435,-151.0,0.00022552,7]
[369001299,1751430646445,-265.125918,0.00022552,7]
[369001300,1751430646456,-265.125918,0.00022552,7]
[369001301,1751430646465,-506.43,0.00022581,4]
[369001302,1751430646475,-13589.91242929,0.000226,5]
[369001303,1751430646487,-191.7,0.00022602,5]
[369001304,1751430646497,-186.961561,0.00022603,2]
[369001305,1751430646507,-506.43,0.00022681,4]
[369001306,1751430646517,-153.0,0.00022685,2]
[369001307,1751430646529,-357.3133662,0.00022685,2]
[369001308,1751430646538,-153.0,0.00022685,2]
[369001309,1751430646548,-153.0,0.00022685,2]
[369001310,1751430646558,-153.0,0.00022685,2]
[369001311,1751430646567,-153.0,0.00022685,2]
[369001312,1751430646578,-1250.7879992,0.00022693,2]
[369001313,1751430646588,-165.47361,0.00022696,2]
[369001314,1751430646598,-154.5820102,0.00022712,2]
[369001315,1751430646608,-153.0,0.00022712,2]
[369001316,1751430646620,-153.0,0.00022712,2]
[369001317,1751430646629,-446.26,0.00022722,2]
[369001318,1751430646639,-463.96,0.00022722,2]
[369001319,1751430646649,-1369.44,0.00022722,2]
[369001320,1751430646659,-216.68497689,0.00022723,2]
[369001321,1751430646669,-634.83,0.00022723,2]
[369001322,1751430646679,-556.91,0.00022723,2]
[369001323,1751430646688,-802.51,0.00022724,2]
[369001324,1751430646698,-1364.29,0.00022724,2]
[369001325,1751430646708,-506.43,0.00022781,3]
[369001326,1751430646717,-1359.47564834,0.00022797,7]
[369001327,1751430646727,-151.0,0.00022822,7]
[369001328,1751430646736,-151.0,0.00022822,7]
[369001329,1751430646746,-152.946531,0.00022822,7]
[369001330,1751430646756,-152.946531,0.00022822,7]
[369001331,1751430646766,-151.0,0.00022822,7]
[369001332,1751430646777,-151.0,0.00022822,7]
[369001333,1751430646787,-506.43,0.00022881,4]
[369001334,1751430646797,-160.0,0.00022928,4]
[369001335,1751430646806,-3500.0,0.00022954,2]
[369001336,1751430646816,-506.43,0.00022981,7]
[369001337,1751430646825,-464.15750267,0.00022996,2]
[369001338,1751430646836,-634.9731108,0.00022996,2]
[369001348,1751430646973,-556.92220598,0.00022996,2]
[369001349,1751430646982,-1369.58289908,0.00022996,2]
[369001351,1751430646992,-802.73013758,0.00022998,2]
[369001353,1751430647002,-1364.47216586,0.00022998,2]
[369001355,1751430647011,-191.7,0.00023039,6]
[369001356,1751430647021,-506.43,0.00023081,3]
[369001358,1751430647031,-1359.47564834,0.00023107,8]
[369001360,1751430647040,-168.0,0.00023133,2]
[369001362,1751430647050,-506.43,0.00023181,6]
[369001364,1751430647059,-8688.83,0.000232,2]
[369001366,1751430647069,-506.43,0.00023281,7]
[369001367,1751430647079,-3494.54,0.000233,7]
[369001369,1751430647088,-168.0,0.00023307,2]
[369001371,1751430647098,-168.0,0.00023328,2]
[369001373,1751430647107,-506.43,0.00023381,5]
[369001374,1751430647116,-1359.47564834,0.00023417,9]
[369001376,1751430647126,-200.0,0.0002342,8]
[369001378,1751430647135,-191.7,0.00023475,6]
[369001380,1751430647143,-506.43,0.00023481,4]
[369001382,1751430647153,-2590.00519775,0.00023502,2]
[369001384,1751430647162,-242.424092,0.00023538,2]
[369001385,1751430647172,-506.43,0.00023581,2]
[369001387,1751430647181,-399.83,0.000236,7]
[369001389,1751430647191,-58.33500275,0.000236,5]
[369001396,1751430647599,-92.66499725,0.000236,5]
[369001397,1751430647609,-151.0,0.000236,5]
[369001398,1751430647621,-506.43,0.00023681,3]
[369001399,1751430647631,-160.0,0.00023688,5]
[369001400,1751430647640,-1359.47564834,0.00023728,9]
[369001401,1751430647650,-506.43,0.00023781,7]
[369001402,1751430647659,-88.11683106,0.00023798,2]
[369001403,1751430647671,-1774.93,0.00023798,2]
[369001404,1751430647682,-445.44633392,0.00023798,2]
[369001405,1751430647694,-50336.30742405,0.00023798,2]
[369001406,1751430647703,-527.22,0.000238,7]
[369001407,1751430647714,-223.0315306,0.00023822,2]
[369001408,1751430647725,-151.0,0.00023864,7]
[369001409,1751430647734,-151.0,0.00023864,7]
[369001410,1751430647744,-151.0,0.00023864,7]
[369001411,1751430647753,-151.0,0.00023864,7]
[369001412,1751430647762,-506.43,0.00023881,4]
[369001413,1751430647772,-151.0,0.00023888,7]
[369001414,1751430647781,-152.087867,0.00023888,7]
[369001415,1751430647791,-151.0,0.00023888,7]
[369001416,1751430647800,-151.0,0.00023888,7]
[369001417,1751430647810,-59577.98030638,0.00023888,2]
[369001418,1751430647821,-16935.75372068,0.00023888,2]
[369001419,1751430647831,-526.96,0.000239,2]
[369001420,1751430647841,-3197.90797372,0.000239,2]
[369001421,1751430647851,-191.7,0.00023911,6]
[369001422,1751430647860,-425.202,0.00023926,2]
[369001423,1751430647869,-971.533,0.00023926,2]
[369001424,1751430647879,-506.43,0.00023981,7]
[369001425,1751430647888,-213.841793,0.00024,3]
[369001426,1751430647897,-331.77269546,0.00024,14]
[369001427,1751430647907,-160.0,0.00024,7]
[369001428,1751430647916,-451.63423701,0.00024,3]
[369001429,1751430647925,-524.6887252,0.00024,3]
[369001430,1751430647934,-524.6887252,0.00024,3]
[369001431,1751430647944,-837.27862799,0.00024,3]
[369001432,1751430647954,-837.27862799,0.00024,7]
[369001433,1751430647963,-160.0,0.00024,3]
[369001434,1751430647973,-160.0,0.00024,7]
[369001435,1751430647983,-230.34465076,0.00024,3]
[369001436,1751430647992,-230.34465076,0.00024,7]
[369001437,1751430648001,-215.04179405,0.00024,3]
[369001438,1751430648010,-215.04179405,0.00024,7]
[369001439,1751430648019,-160.0,0.00024,3]
[369001440,1751430648029,-1359.47564834,0.00024038,10]
[369001441,1751430648039,-190.270315,0.00024038,7]
[369001442,1751430648049,-506.43,0.00024081,7]
[369001443,1751430648058,-506.43,0.00024181,6]
[369001444,1751430648067,-247.364,0.0002427,2]
[369001445,1751430648077,-250.0,0.0002427,2]
[369001446,1751430648086,-151.0,0.0002427,7]
[369001447,1751430648095,-151.0,0.0002427,7]
[369001448,1751430648105,-151.0,0.0002427,7]
[369001449,1751430648114,-151.0,0.0002427,7]
[369001450,1751430648123,-289.448598,0.0002427,7]
[369001451,1751430648132,-151.0,0.0002427,7]
[369001452,1751430648142,-151.0,0.0002427,7]
[369001453,1751430648151,-506.43,0.00024281,5]
[369001454,1751430648160,-150.0,0.00024307,2]
[369001455,1751430648169,-191.7,0.00024347,7]
[369001456,1751430648179,-151.0,0.00024348,7]
[369001457,1751430648189,-151.0,0.00024348,7]
[369001458,1751430648198,-1359.47564834,0.00024348,11]
[369001459,1751430648207,-506.43,0.00024381,5]
[369001460,1751430648216,-8688.83,0.000244,2]
[369001461,1751430648227,-342.489569,0.000244,2]
[369001462,1751430648237,-342.489569,0.000244,2]
[369001463,1751430648248,-151.0,0.000244,7]
[369001464,1751430648257,-151.0,0.000244,7]
[369001465,1751430648267,-206.19884,0.000244,7]
[369001466,1751430648277,-206.19884,0.000244,7]
[369001467,1751430648287,-165.47361,0.00024401,7]
[369001468,1751430648296,-151.0,0.00024449,7]
[369001469,1751430648306,-265.125918,0.00024449,7]
[369001470,1751430648316,-265.125918,0.00024449,7]
[369001471,1751430648325,-160.0,0.00024449,6]
[369001472,1751430648335,-506.43,0.00024481,5]
[369001473,1751430648345,-506.43,0.00024581,5]
[369001474,1751430648354,-5000.0,0.000246,32]
[369001475,1751430648364,-3494.54,0.000246,7]
[369001476,1751430648374,-3380.0,0.00024611,7]
[369001477,1751430648383,-212.8386663,0.0002465,7]
[369001478,1751430648392,-311.45857087,0.00024657,2]
[369001479,1751430648402,-300.0,0.00024657,4]
[369001480,1751430648412,-500.0,0.00024658,2]
[369001481,1751430648421,-1359.47564834,0.00024659,11]
[369001482,1751430648432,-276.74707406,0.00024664,120]
[369001483,1751430648441,-506.43,0.00024681,3]
[369001484,1751430648452,-500.0,0.00024685,2]
[369001485,1751430648462,-1250.7879992,0.000247,2]
[369001486,1751430648472,-983.18670126,0.000247,2]
[369001487,1751430648481,-500.0,0.00024713,2]
[369001488,1751430648491,-500.0,0.0002474,2]
[369001489,1751430648500,-168.0,0.0002474,2]
[369001490,1751430648510,-339.0,0.00024741,2]
[369001491,1751430648520,-500.0,0.00024768,2]
[369001492,1751430648530,-506.43,0.00024781,5]
[369001493,1751430648540,-191.7,0.00024784,7]
[369001494,1751430648550,-196.35548911,0.00024795,2]
[369001495,1751430648559,-212.17115466,0.000248,2]
[369001496,1751430648569,-2676.70684912,0.000248,2]
[369001497,1751430648579,-2505.27766352,0.000248,2]
[369001498,1751430648591,-641.00857584,0.000248,2]
[369001499,1751430648603,-46124.12046634,0.000248,2]
[369001500,1751430648730,-434.43435421,0.00016693,2]
[369001501,1751430648740,-65.74370416,0.00016694,2]
[369001502,1751430648751,-324.97025148,0.00016694,2]
[369001503,1751430648762,-205.73451403,0.00016694,2]
[369001504,1751430648771,-460.0,0.00016695,2]
[369001505,1751430648782,-503.45,0.00016695,2]
[369001506,1751430648792,-460.0,0.00016968,2]
[369001507,1751430648801,-298.02494734,0.00016969,2]
[369001508,1751430648813,-161.97505266,0.00016969,2]
[369001509,1751430648823,-503.45,0.00016969,2]
[369001510,1751430648832,-460.0,0.00017243,2]
[369001511,1751430648841,-503.45,0.00017243,2]
[369001512,1751430648850,-335.83062207,0.00017517,2]
[369001513,1751430648860,-151.0,0.00019424,2]
[369001514,1751430648869,-151.0,0.00019452,2]
[369001515,1751430648879,-244.140958,0.00019479,2]
[369001516,1751430648888,-983.1867012,0.00024735,2]
[369001517,1751430648898,-814.1011085,0.000248,2]
[369001518,1751430648907,-203965.94621068,0.000248,30]
[369001519,1751430650899,-10171.75052986,0.000248,30]
[369001520,1751430651018,-86.80185429,0.000248,30]
[369001521,1751430651287,-75.18589116,0.00017517,2]
[369001522,1751430651362,-258.0030354,0.00017517,2]
[369001523,1751430780182,-207.0,0.00016553,2]
[369001524,1751430824358,176.71460014,0.00016099,2]
[369001525,1751430849185,-161.0,0.00016497,2]
[369001526,1751430916002,-47.52483704,0.00016497,2]
[369001527,1751430916023,-48.0,0.00016553,2]
[369001528,1751430916047,-364.47516296,0.00016573,2]
[369001529,1751430980370,-26.03286129,0.00016573,2]
[369001530,1751430980392,-256.96713871,0.00016573,2]
[369001531,1751431062321,242.424092,0.00015596,2]
[369001533,1751431065600,297.879974,0.00013699,2]
[369001534,1751431107685,-334.0,0.00016573,2]
[369001535,1751431123330,12210.5778662,0.00015594,2]
[369001536,1751431236935,-3064.0,0.00016573,2]
[369001537,1751431305815,-292.0,0.00016496,2]
[369001538,1751431440386,-2067.72939091,0.00016496,2]
[369001539,1751431440408,-704.27060909,0.00016496,2]
[369001540,1751431506454,-263.44452121,0.00016494,2]
[369001541,1751431506477,-38.55547879,0.00016496,2]
[369001542,1751431508046,1466.5807266,0.00015715,2]
[369001543,1751431546697,460.0,0.00025156,60]
[369001544,1751431630826,-183.0,0.00016487,2]
[369001545,1751431630847,-79.66888604,0.00016496,2]
[369001546,1751431630868,-10.49995377,0.00016573,2]
[369001547,1751431641115,-2838.50152661,0.00016573,2]
[369001548,1751431641141,-336.07,0.00016587,3]
[369001549,1751431641163,-464.26,0.00016587,3]
[369001550,1751431641185,-272.05218923,0.00016589,2]
[369001551,1751431649175,-230.51395605,0.00016494,2]
[369001552,1751431649196,-27.94781077,0.00016589,2]
[369001553,1751431649218,-300.0,0.0001659,2]
[369001554,1751431649238,-600.0,0.0001659,2]
[369001555,1751431649258,-500.0,0.0001659,2]
[369001556,1751431649277,-500.0,0.0001659,2]
[369001557,1751431649298,-502.40031963,0.0001659,2]
[369001558,1751431649318,-288.06,0.0001659,2]
[369001559,1751431649338,-500.0,0.0001659,2]
[369001560,1751431649358,-396.68229971,0.0001659,2]
[369001561,1751431649503,-500.0,0.0001659,2]
[369001562,1751431649528,-500.0,0.0001659,2]
[369001563,1751431649550,-645.80855447,0.0001659,2]
[369001564,1751431649579,-500.0,0.0001659,2]
[369001565,1751431649602,-500.0,0.0001659,2]
[369001566,1751431649629,-43.8789095,0.0001659,2]
[369001567,1751431745137,-300.0,0.00016589,2]
[369001568,1751431745163,-500.0,0.00016589,2]
[369001569,1751431745186,-182.86761716,0.00016589,2]
[369001570,1751431745209,-500.0,0.00016589,2]
[369001571,1751431745231,-374.26000621,0.00016589,2]
[369001572,1751431745252,-38052.0965948,0.0001659,2]
[369001573,1751431746132,-11947.9034052,0.0001659,2]
[369001574,1751431746156,-460.0,0.00016591,2]
[369001575,1751431746178,-460.0,0.00016591,2]
[369001576,1751431746200,-460.0,0.00016591,2]
[369001577,1751431746221,-460.0,0.00016591,2]
[369001578,1751431746245,-460.0,0.00016591,2]
[369001579,1751431746265,-258.36080698,0.00016591,2]
[369001580,1751431746285,-460.0,0.00016591,2]
[369001581,1751431746305,-460.0,0.00016591,2]
[369001582,1751431746325,-460.0,0.00016591,2]
[369001583,1751431746346,-460.0,0.00016591,2]
[369001584,1751431746369,-461.94303739,0.00016591,2]
[369001585,1751431746392,-460.0,0.00016591,2]
[369001586,1751431746412,-460.0,0.00016591,2]
[369001587,1751431746433,-160.86803406,0.00016591,2]
[369001588,1751431746452,-460.0,0.00016591,2]
[369001589,1751431746473,-460.0,0.00016591,2]
[369001590,1751431746492,-460.0,0.00016591,2]
[369001591,1751431746512,-460.0,0.00016591,2]
[369001592,1751431746532,-460.0,0.00016591,2]
[369001593,1751431746553,-460.0,0.00016591,2]
[369001594,1751431746573,-460.0,0.00016591,2]
[369001595,1751431746593,-178.85321617,0.00016591,2]
[369001596,1751431746613,-298.38508023,0.00016591,2]
[369001597,1751431746633,-460.0,0.00016591,2]
[369001598,1751431746654,-460.0,0.00016591,2]
[369001599,1751431746674,-460.0,0.00016591,2]
[369001600,1751431746696,-460.0,0.00016591,2]
[369001601,1751431746716,-460.0,0.00016591,2]
[369001602,1751431746737,-153.85731705,0.00016591,2]
[369001603,1751431752120,-307.16442623,0.00016591,2]
[369001604,1751431752142,-460.0,0.00016591,2]
[369001605,1751431752167,-460.0,0.00016591,2]
[369001606,1751431752190,-460.0,0.00016591,2]
[369001607,1751431752212,-460.0,0.00016591,2]
[369001608,1751431752234,-460.0,0.00016591,2]
[369001609,1751431752259,-460.0,0.00016591,2]
[369001610,1751431752281,-460.0,0.00016591,2]
[369001611,1751431752302,-460.0,0.00016591,2]
[369001612,1751431752324,-460.0,0.00016591,2]
[369001613,1751431752345,-462.77252175,0.00016591,2]
[369001614,1751431752366,-460.0,0.00016591,2]
[369001615,1751431752386,-26.91735634,0.00016591,2]
[369001616,1751431753204,-500.0,0.00016589,2]
[369001617,1751431753224,-433.08264366,0.00016591,2]
[369001618,1751431753245,-461.72576968,0.00016591,2]
[369001619,1751431753264,-502.85678311,0.00016591,2]
[369001620,1751431753286,-692.3,0.00016591,2]
[369001621,1751431753306,-460.0,0.00016591,2]
[369001622,1751431753325,-460.0,0.00016591,2]
[369001623,1751431753350,-460.0,0.00016591,2]
[369001624,1751431753371,-500.0,0.00016591,2]
[369001625,1751431753529,-165.31380372,0.00016591,2]
[369001626,1751431753552,-299.01953635,0.00016591,2]
[369001627,1751431753572,-460.0,0.00016592,2]
[369001628,1751431753592,-460.0,0.00016592,2]
[369001629,1751431753612,-462.15474306,0.00016592,2]
[369001630,1751431753632,-460.0,0.00016592,2]
[369001631,1751431753652,-460.0,0.00016592,2]
[369001632,1751431753671,-460.0,0.00016592,2]
[369001633,1751431753692,-460.0,0.00016592,2]
[369001634,1751431753715,-460.0,0.00016592,2]
[369001635,1751431753738,-460.0,0.00016592,2]
[369001636,1751431753759,-463.73542254,0.00016592,2]
[369001637,1751431753781,-1439.72,0.00016592,2]
[369001638,1751431753803,-460.0,0.00016592,2]
[369001639,1751431753823,-460.0,0.00016592,2]
[369001640,1751431753846,-864.42,0.00016592,2]
[369001641,1751431753867,-460.0,0.00016592,2]
[369001642,1751431753888,-460.0,0.00016592,2]
[369001643,1751431753911,-460.0,0.00016592,2]
[369001644,1751431753932,-460.0,0.00016592,2]
[369001645,1751431753955,-719.15,0.00016592,2]
[369001646,1751431753975,-460.0,0.00016592,2]
[369001647,1751431753995,-460.0,0.00016592,2]
[369001648,1751431754020,-460.0,0.00016592,2]
[369001649,1751431754041,-460.0,0.00016592,2]
[369001650,1751431754062,-815.94,0.00016592,2]
[369001651,1751431754085,-1002.97,0.00016592,2]
[369001652,1751431754104,-460.0,0.00016592,2]
[369001653,1751431754124,-460.0,0.00016592,2]
[369001654,1751431754144,-460.0,0.00016592,2]
[369001655,1751431754171,-460.0,0.00016592,2]
[369001656,1751431754191,-460.0,0.00016592,2]
[369001657,1751431754210,-164.06415745,0.00016594,2]
[369001658,1751431754231,-460.0,0.00016594,2]
[369001659,1751431754251,-460.0,0.00016594,2]
[369001660,1751431754271,-460.0,0.00016594,2]
[369001661,1751431754291,-460.0,0.00016594,2]
[369001662,1751431754310,-460.0,0.00016594,2]
[369001663,1751431754330,-460.0,0.00016594,2]
[369001664,1751431754351,-460.0,0.00016594,2]
[369001665,1751431754370,-460.0,0.00016594,2]
[369001666,1751431754390,-460.0,0.00016594,2]
[369001667,1751431754410,-470.0204448,0.00016594,2]
[369001668,1751431754430,-411.44467223,0.00016594,2]
[369001669,1751431754450,-460.99921754,0.00016594,2]
[369001670,1751431754470,-460.0,0.00016594,2]
[369001671,1751431754490,-460.0,0.00016594,2]
[369001672,1751431754510,-255.96220861,0.00016594,2]
[369001673,1751431754531,-460.0,0.00016594,2]
[369001674,1751431754551,-460.0,0.00016594,2]
[369001675,1751431754570,-460.0,0.00016594,2]
[369001676,1751431754590,-460.0,0.00016594,2]
[369001677,1751431754613,-461.02734977,0.00016594,2]
[369001678,1751431754634,-533.19762563,0.00016594,2]
[369001679,1751431754654,-502.53559146,0.00016594,2]
[369001680,1751431754674,-460.0,0.00016594,2]
[369001681,1751431754695,-460.0,0.00016594,2]
[369001682,1751431754715,-460.0,0.00016594,2]
[369001683,1751431754735,-460.0,0.00016594,2]
[369001684,1751431754755,-460.0,0.00016594,2]
[369001685,1751431754774,-463.14677431,0.00016594,2]
[369001686,1751431754795,-460.0,0.00016594,2]
[369001687,1751431754815,-460.0,0.00016594,2]
[369001688,1751431754838,-460.0,0.00016594,2]
[369001689,1751431754859,-460.0,0.00016594,2]
[369001690,1751431754880,-471.38326142,0.00016594,2]
[369001691,1751431754902,-460.0,0.00016594,2]
[369001692,1751431754922,-469.41246669,0.00016594,2]
[369001693,1751431754945,-356.27841044,0.00016594,2]
[369001694,1751431755053,-460.0,0.00016592,2]
[369001695,1751431755076,-103.72158956,0.00016594,2]
[369001696,1751431755100,-460.0,0.00016594,2]
[369001697,1751431755124,-460.0,0.00016594,2]
[369001698,1751431755147,-460.0,0.00016594,2]
[369001699,1751431755173,-460.0,0.00016594,2]
[369001700,1751431755194,-1002.47827891,0.00016594,2]
[369001701,1751431755217,-460.0,0.00016594,2]
[369001702,1751431755239,-460.0,0.00016594,2]
[369001703,1751431755259,-460.0,0.00016594,2]
[369001704,1751431755279,-460.0,0.00016594,2]
[369001705,1751431755300,-460.0,0.00016594,2]
[369001706,1751431755423,-460.0,0.00016594,2]
[369001707,1751431755443,-462.69897738,0.00016594,2]
[369001708,1751431755463,-460.0,0.00016594,2]
[369001709,1751431755484,-465.29447915,0.00016594,2]
[369001710,1751431755504,-192.72918145,0.00016594,2]
[369001711,1751431755524,-460.0,0.00016594,2]
[369001712,1751431755544,-460.0,0.00016594,2]
[369001713,1751431755564,-460.0,0.00016594,2]
[369001714,1751431755585,-460.0,0.00016594,2]
[369001715,1751431755606,-460.0,0.00016594,2]
[369001716,1751431755626,-460.0,0.00016594,2]
[369001717,1751431755647,-460.0,0.00016594,2]
[369001718,1751431755667,-460.0,0.00016594,2]
[369001719,1751431755687,-500.0,0.00016594,2]
[369001720,1751431755709,-500.0,0.00016594,2]
[369001721,1751431755729,-460.0,0.00016594,2]
[369001722,1751431755750,-460.0,0.00016594,2]
[369001723,1751431755771,-460.0,0.00016594,2]
[369001724,1751431755793,-460.0,0.00016594,2]
[369001725,1751431755816,-460.0,0.00016594,2]
[369001726,1751431755837,-460.0,0.00016594,2]
[369001727,1751431755859,-460.0,0.00016594,2]
[369001728,1751431755881,-460.0,0.00016594,2]
[369001729,1751431755903,-460.0,0.00016594,2]
[369001730,1751431755926,-460.0,0.00016594,2]
[369001731,1751431755947,-460.0,0.00016594,2]
[369001732,1751431755967,-460.0,0.00016594,2]
[369001733,1751431755989,-460.0,0.00016594,2]
[369001734,1751431756009,-460.0,0.00016594,2]
[369001735,1751431756030,-460.0,0.00016594,2]
[369001736,1751431756051,-460.0,0.00016594,2]